Cogmind - Beta 14 @@@ ROGUE MODE // 2025.01.11 @ 22:39:21 Player: ffmpega Result: Destroyed by G-47 Trooper with Particle Gun Performance ------------- Evolutions (3) 1500 Regions Visited (4) 800 Robots Destroyed (33) 165 Value Destroyed (1113) 1113 Prototype IDs (1) 20 Alien Tech Used (0) 0 Bonus (0) 0 TOTAL SCORE: 3598 Bonus ------- None Cogmind --------- Core Integrity 0/700 Matter 240/300 Energy 100/100 System Corruption 1% Temperature Cool (18) Movement Core (700) Ox13 Location -7/Factory Parts ------- > --- POWER (1) -------- (None) > --- PROPULSION (4) --- (None) > --- UTILITY (4) ------ High-capacity Storage Unit > --- WEAPON (4) ------- (None) > --- INVENTORY (20) --- Improved Deuterium Engine Improved Deuterium Engine Improved Carbon-fiber Leg Large Matter Pod (150) Compact Matter Pod (146) Advanced Weight Redist. System Advanced Weight Redist. System Trap Scanner Peak State ------------ > --- POWER ------------ Light Ion Engine > --- PROPULSION ------- Improved Carbon-fiber Leg Improved Carbon-fiber Leg Improved Carbon-fiber Leg Improved Titanium Leg > --- UTILITY ---------- High-capacity Storage Unit Improved Sensor Array Target Analyzer Hardened Medium Armor Plating > --- WEAPON ----------- Heavy EM Pulse Gun Heavy Particle Gun Minigun Flak Cannon > --- INVENTORY -------- Aluminum Leg Aluminum Leg Aluminum Leg Aluminum Leg Aluminum Leg Aluminum Leg Aluminum Leg Large Matter Pod Compact Matter Pod Advanced Weight Redist. System Advanced Weight Redist. System Trap Scanner [Rating: 41] Favorites ----------- Power Ion Engine Engine Ion Engine Propulsion Aluminum Leg Leg Aluminum Leg Utility Small Storage Unit Device Improved Sensor Array Storage Small Storage Unit Processor Target Analyzer Protection Hardened Medium Armor Plating Weapon Light Cannon Energy Gun Heavy Particle Gun Ballistic Gun Assault Rifle Ballistic Cannon Light Cannon Build | -11 -10 -9 -8 -7 ------- Run | Yrd Mat Mat Mat Fac Slots Evolved 6 | . . 2 2 2 Power . | . . . . . Propulsion 2 | . . 2 . . Utility 2 | . . . 1 1 Weapon 2 | . . . 1 1 Parts Attached 51 | 6 4 2 10 29 Power 8 | 1 . . 1 6 Engine 8 | 1 . . 1 6 Core . | . . . . . Reactor . | . . . . . Propulsion 22 | 2 . 2 4 14 Treads . | . . . . . Leg 22 | 2 . 2 4 14 Wheel . | . . . . . Hover . | . . . . . Flight . | . . . . . Utility 11 | 1 2 . 4 4 Device 4 | . 1 . 1 2 Storage 3 | 1 1 . . 1 Processor 2 | . . . 1 1 Hackware . | . . . . . Protection 2 | . . . 2 . Artifact . | . . . . . Weapon 10 | 2 2 . 1 5 Energy Gun 2 | . . . . 2 Energy Cannon . | . . . . . Ballistic Gun 4 | 2 . . 1 1 Ballistic Cannon 4 | . 2 . . 2 Launcher . | . . . . . Special Weapon . | . . . . . Impact Weapon . | . . . . . Slashing Weapon . | . . . . . Piercing Weapon . | . . . . . Special Melee Weapon . | . . . . . Unidentified Prototypes 1 | . . . . 1 Parts Lost 27 | . . . . 27 Power 3 | . . . . 3 Propulsion 12 | . . . . 12 Utility 4 | . . . . 4 Weapon 8 | . . . . 8 Highest Loss Streak 10 | . . . . 10 To Critical Strikes . | . . . . . Average Slot Usage (%) 91 | . 98 95 99 81 Engine 8 | . 14 11 9 6 Leg 30 | . 28 39 36 26 Device 8 | . 12 11 8 6 Storage 9 | . 14 11 9 7 Processor 3 | . . . 7 4 Protection 2 | . . . 1 4 Energy Gun 1 | . . . . 2 Ballistic Gun 8 | . 20 . 9 4 Ballistic Cannon 14 | . 7 22 18 13 Peak Build Rating 41 | 6 7 9 17 41 Average Rating 18 | 4 6 8 15 28 On Entrance 7 | . 6 7 9 17 Naked Turns . | . . . . . Heaviest Build 70 | 14 17 17 29 70 Greatest Support 72 | 20 20 40 40 72 Greatest Overweight (x) 13 | 1 . . . 13 Average Overweight (x) . | . . . . . Largest Inventory Capacity 20 | 8 8 8 8 20 Average Capacity 12 | 7 8 8 8 19 Most Carried 16 | 4 8 8 8 16 Average Carried 9 | 2 6 7 7 11 Final Capacity 20 | 8 8 8 8 20 Final Carried 8 | 4 8 8 8 8 Class Distribution -------------------- 43% | Mutant 21% | Gunner 18% | Scavenger-Skirmisher 5% | Scavenger-Tank 4% | Tank 4% | Skirmisher Dominant Class ---------------- Mutant | -10/Materials Mutant | -9/Materials Scavenger-Skirmisher | -8/Materials Gunner | -7/Factory Resources | -11 -10 -9 -8 -7 ----------- Run | Yrd Mat Mat Mat Fac Matter Collected 1704 | 240 282 84 316 782 Remotely . | . . . . . Salvage Created 1086 | . 158 106 278 544 Parts 49 | . 16 8 8 17 Haulers Intercepted . | . . . . . Recyclers Shooed 2 | . . . . 2 Parts Field Recycled . | . . . . . Retrieved Matter . | . . . . . Parts Self-Destructed . | . . . . . Prevented . | . . . . . Kills | -11 -10 -9 -8 -7 ------- Run | Yrd Mat Mat Mat Fac Combat Hostiles Destroyed 23 | . 2 3 8 10 Guns 4 | . 1 . . 3 Cannons 19 | . 1 3 8 7 Classes Destroyed 7 | . 3 1 2 1 Worker 6 | . 3 . . 3 Recycler 2 | . . . . 2 Watcher 2 | . 2 . . . Grunt 16 | . 2 2 5 7 Duelist 2 | . . . 1 1 Sentry 4 | . . 1 1 2 Hunter 1 | . . . 1 . Best Kill Streak 4 | . 3 2 3 4 Combat Bots Only 3 | . 1 2 3 3 Max Kills in Single Turn 2 | . 2 1 1 2 Gunslinging . | . . . . . Exploded . | . . . . . Melee . | . . . . . Uniques/NPCs Destroyed . | . . . . . Combat | -11 -10 -9 -8 -7 -------- Run | Yrd Mat Mat Mat Fac Hostile Shots Fired 518 | . 9 11 48 450 Missed 175 | . 3 2 17 153 Damage Taken 3931 | . 67 122 417 3325 Core 779 | . 22 31 21 705 Absorbed by Shields . | . . . . . Core Remaining (%) 94 | 100 91 92 96 . Volleys Fired 110 | . 11 8 23 68 Largest 4 | . 2 2 3 4 Hottest 169 | . 70 70 90 169 Shots Fired 258 | . 22 16 69 151 Gun 89 | . 12 . 23 54 Cannon 169 | . 10 16 46 97 Launcher . | . . . . . Special . | . . . . . Kinetic 239 | . 22 16 69 132 Thermal 14 | . . . . 14 Explosive . | . . . . . Electromagnetic 5 | . . . . 5 Robot Hit Streak 9 | . 4 4 5 9 Robot Miss Streak 7 | . 3 2 3 7 Penetration Max . | . . . . . Secondary Targets . | . . . . . Shots Hit Robots 150 | . 11 9 43 87 Core Hits 84 | . 9 4 18 53 Critical Kills 1 | . . . . 1 Critical Parts Destroyed . | . . . . . Critical Strikes 8 | . 1 . 1 6 Burn 1 | . . . . 1 Destroy 1 | . . . . 1 Blast 5 | . 1 . 1 3 Corrupt 1 | . . . . 1 Melee Attacks . | . . . . . Impact . | . . . . . Slashing . | . . . . . Piercing . | . . . . . Sneak Attacks . | . . . . . Combat Hostiles . | . . . . . Follow-up Attacks . | . . . . . Damage Inflicted 2865 | . 219 159 667 1820 Guns 688 | . 94 . 102 492 Cannons 2085 | . 124 159 557 1245 Explosions . | . . . . . Melee . | . . . . . Ramming 92 | . 1 . 8 83 Kinetic 2573 | . 218 159 659 1537 Thermal 175 | . . . . 175 Explosive . | . . . . . Electromagnetic 25 | . . . . 25 Impact . | . . . . . Slashing . | . . . . . Piercing . | . . . . . Highest Corruption 1 | . . . . 1 Average Corruption 1 | . . . . 1 Corruption Purged . | . . . . . Corruption Blocked . | . . . . . Overload Shots . | . . . . . Overflow Damage 23 | . . . 2 21 Projectiles 16 | . . . 2 14 Explosions . | . . . . . Melee 7 | . . . . 7 Knockbacks 34 | . 1 3 4 26 Impact 2 | . . . . 2 Kinetic 30 | . 1 3 4 22 Secondary 2 | . . . . 2 Self-Inflicted Damage . | . . . . . Shots . | . . . . . Rammed 4 | . . . . 4 Targets Rammed 20 | . 1 . 5 14 Kicked 16 | . 1 . 5 10 Crushed . | . . . . . Highest Temperature 568 | . 75 13 96 568 Average Temperature 144 | . 39 8 30 204 Received Heat Transfer 1629 | . 36 54 117 1422 Effects 9 | . . . . 9 Shutdowns 3 | . . . . 3 Energy Bleed 2 | . . . . 2 Damage (major) 4 | . . . . 4 Siege Activations . | . . . . . Robots Corrupted 1 | . . . . 1 Combat Hostiles . | . . . . . Parts Fried 2 | . . . . 2 Impact Corruptions 1 | . . . . 1 Robots Melted . | . . . . . Combat Hostiles . | . . . . . Parts Melted . | . . . . . Heat Transferred 407 | . . . . 407 Parts Sabotaged . | . . . . . Parts Stolen . | . . . . . Parts Stripped . | . . . . . Power Chain Reactions . | . . . . . Alert | -11 -10 -9 -8 -7 ------- Run | Yrd Mat Mat Mat Fac Peak Influence 261 | . 109 205 261 224 Initial 86 | . . 45 86 79 Average 98 | . 46 131 134 96 Maximum Alert Level 1 | . . 1 1 1 Low Security (%) 90 | 100 100 79 93 87 Level 1 9 | . . 20 6 12 Level 2 . | . . . . . Level 3 . | . . . . . Level 4 . | . . . . . Level 5 . | . . . . . High Security . | . . . . . Max Security . | . . . . . Squads Dispatched 7 | . 1 . 1 5 Investigation . | . . . . . Extermination 1 | . . . . 1 Reinforcement 3 | . 1 . 1 1 Assault . | . . . . . Garrison 3 | . . . . 3 Intercept . | . . . . . Searches Triggered . | . . . . . Construction Impeded 1 | . . . . 1 Haulers Reinforced . | . . . . . Active Scanning Responses . | . . . . . Cargo Convoy Interrupts . | . . . . . Stealth | -11 -10 -9 -8 -7 --------- Run | Yrd Mat Mat Mat Fac Distress Signals 6 | . 1 . 5 . Communications Jammed . | . . . . . Distress Signals . | . . . . . Times Spotted 50 | . 5 8 22 15 Peak Tracking Total 8 | . 2 4 8 4 Tactical Retreats 3 | . . 1 1 1 Traps | -11 -10 -9 -8 -7 ------- Run | Yrd Mat Mat Mat Fac Traps Triggered . | . . . . . Indirectly . | . . . . . Trap Hack Attempts . | . . . . . Triggered . | . . . . . Disarmed . | . . . . . Reprogrammed . | . . . . . Reused . | . . . . . Traps Extracted . | . . . . . Installed . | . . . . . Triggered . | . . . . . Machines | -11 -10 -9 -8 -7 ---------- Run | Yrd Mat Mat Mat Fac Machines Disabled 1 | . . . . 1 Max in Single Turn 1 | . . . . 1 Machines Repaired . | . . . . . Machines Dismantled . | . . . . . Machines Sabotaged . | . . . . . Overloaded Fab Kills . | . . . . . Hacking | -11 -10 -9 -8 -7 --------- Run | Yrd Mat Mat Mat Fac Machines Accessed 1 | . . . 1 . Terminals 1 | . . . 1 . Fabricators . | . . . . . Repair Stations . | . . . . . Recycling Units . | . . . . . Scanalyzers . | . . . . . Garrison Access . | . . . . . Total Hacks 2 | . . . 2 . Successful 1 | . . . 1 . Failed 1 | . . . 1 . Catastrophic . | . . . . . Database Lockouts . | . . . . . Manual . | . . . . . Terminals 2 | . . . 2 . Fabricators . | . . . . . Repair Stations . | . . . . . Recycling Units . | . . . . . Scanalyzers . | . . . . . Garrison Access . | . . . . . Terminal Hacks 1 | . . . 1 . Alert Level 1 | . . . 1 . Fabricator Hacks . | . . . . . Repair Station Hacks . | . . . . . Recycling Unit Hacks . | . . . . . Scanalyzer . | . . . . . Garrison Access Hacks . | . . . . . Unauthorized Hacks . | . . . . . Terminals . | . . . . . Fabricators . | . . . . . Repair Stations . | . . . . . Recycling Units . | . . . . . Scanalyzers . | . . . . . Garrison Access . | . . . . . Data Cores Recovered . | . . . . . Used . | . . . . . Hacking Detections 1 | . . . 1 . Full Trace Events . | . . . . . Feedback Events . | . . . . . Feedback Blocked . | . . . . . Robot Schematics Acquired . | . . . . . Robots Built . | . . . . . Authchips . | . . . . . Time . | . . . . . Total Robot Build Rating . | . . . . . Part Schematics Acquired . | . . . . . Parts Built . | . . . . . Authchips . | . . . . . Time . | . . . . . Total Part Build Rating . | . . . . . Parts Repaired . | . . . . . Time . | . . . . . Parts Recycled . | . . . . . Recycled Matter . | . . . . . Retrieved Matter . | . . . . . Retrieved Components . | . . . . . Parts Scanalyzed . | . . . . . Part Schematics Acquired . | . . . . . Parts Damaged . | . . . . . Bothacking | -11 -10 -9 -8 -7 ------------ Run | Yrd Mat Mat Mat Fac Used RIF Installer . | . . . . . Robots Hacked . | . . . . . Non-combat . | . . . . . Combat . | . . . . . Robot Hacks Applied . | . . . . . Relay Couplers Released . | . . . . . Fabnet Peak Effective % . | . . . . . Robots Rewired . | . . . . . Allies Hacked . | . . . . . Hacks Repelled . | . . . . . Allies | -11 -10 -9 -8 -7 -------- Run | Yrd Mat Mat Mat Fac Total Allies . | . . . . . Largest Group . | . . . . . Highest-Rated Group . | . . . . . Highest-Rated Ally . | . . . . . Total Orders . | . . . . . Ally Attacks . | . . . . . Total Damage . | . . . . . Kills . | . . . . . Allies Corrupted . | . . . . . Allies Melted . | . . . . . Intel | -11 -10 -9 -8 -7 ------- Run | Yrd Mat Mat Mat Fac Robot Analysis Total . | . . . . . Derelict Logs Recovered . | . . . . . Drone Launches . | . . . . . Drone Recoveries . | . . . . . Exploration | -11 -10 -9 -8 -7 ------------- Run | Yrd Mat Mat Mat Fac Turns Passed 2163 | 88 360 221 615 879 Spaces Moved 1267 | 59 248 153 412 395 Core 5 | 4 . . . 1 Treads . | . . . . . Legs 1262 | 55 248 153 412 394 Wheels . | . . . . . Hover . | . . . . . Flight . | . . . . . Fastest Speed 50 | 50 120 120 120 120 Average Speed 126 | 128 120 120 120 141 Slowest Speed 700 | 190 120 120 120 700 Overloaded Moves . | . . . . . Propulsion Burnouts . | . . . . . Robots Hopped . | . . . . . Cave-ins Triggered . | . . . . . Exploration Rate (%) 23 | 5 54 20 30 10 Regions Visited 4 Branch Regions . Pre-discovered Areas . | . . . . . Known Exits Taken . | . . . . . Unknown Exits Taken 4 | 1 1 1 1 . Scrap Searched . | . . . . . Spaces Dug . | . . . . . Terrain Destroyed . | . . . . . Melee . | . . . . . Projectile . | . . . . . AOE . | . . . . . Terrain Rammed . | . . . . . Walls Destroyed . | . . . . . Machines Disabled . | . . . . . Actions | -11 -10 -9 -8 -7 --------- Run | Yrd Mat Mat Mat Fac Total 1590 | 68 289 174 484 575 Wait 99 | . 12 11 20 56 Move 1263 | 58 247 152 411 395 Hop . | . . . . . Pick Up 28 | 4 8 1 5 10 Fast Attach 17 | 6 3 1 2 5 Attach 16 | . . 1 2 13 Detach 1 | . . . 1 . Swap 18 | . 1 . 6 11 Drop 18 | . 6 . 9 3 Fire 110 | . 11 8 23 68 Melee . | . . . . . Ram 4 | . . . . 4 Kick 16 | . 1 . 5 10 Crush . | . . . . . Escape Stasis . | . . . . . Rewire . | . . . . . Trap . | . . . . . Miscellaneous . | . . . . . Route ------- -11/Scrapyard -10/Materials -9/Materials -8/Materials -7/Factory History --------- Turn | Location | Event 21 | -11/Scrapyard | Discovered new exit (range 15) 89 | -11/Scrapyard | Entered Materials 305 | -10/Materials | Build established: Mutant 443 | -10/Materials | Discovered new exit (range 5) 449 | -10/Materials | Entered another Materials area 449 | -9/Materials | Evolved 2 slots: Propulsion x2 657 | -9/Materials | Discovered new exit (range 5) 670 | -9/Materials | Entered another Materials area 670 | -8/Materials | Evolved 2 slots: Utility x1, Weapon x1 1075 | -8/Materials | Build established: Scavenger-Skirmisher 1275 | -8/Materials | Discovered new exit (range 10) 1285 | -8/Materials | Entered Factory 1285 | -7/Factory | Evolved 2 slots: Utility x1, Weapon x1 1641 | -7/Factory | Build established: Gunner 1692 | -7/Factory | Lost 3 parts (1p2w) 1741 | -7/Factory | Garrison activated, responded to threat 1959 | -7/Factory | Lost 10 parts (1p3n2u4w) 2008 | -7/Factory | Lost 3 parts (2n1u) 2077 | -7/Factory | Core integrity fell below 50% 2156 | -7/Factory | Core integrity fell below 20% 2162 | -7/Factory | Lost 7 parts (1p4n1u1w) 2164 | -7/Factory | Destroyed by G-47 Trooper with Particle Gun Last Messages --------------- 02093_ Assembly Bed disabled. 02096_ Aluminum Leg destroyed. 02099_ G-47 Trooper knocked back. 02103_ G-47 Trooper Aluminum Leg blasted off. 02107_ Destroyed Lgt. Nuclear Core. 02107_ Imp. Light Cannon destroyed. 02110_ Aluminum Leg destroyed. 02114_ Kicked G-47 Trooper. 02117_ Recalibrator destroyed. 02119_ ALERT: Rogue bot located, Programmers report to Factory Zone 9H. 02119_ Acquired 13 matter. 02126_ Imp. Deuterium Engine destroyed. 02130_ Kicked G-47 Trooper. 02130_ G-47 Trooper knocked back. 02131_ Aluminum Leg destroyed. 02138_ Critical hit (Burn: +37). 02140_ Slammed into G-47 Trooper. 02154_ Destabilizing: System corrupted (+1). 02161_ Slammed into G-47 Trooper. Map ----- +----------------------------------------------------+ | ???????????????????#??????????????? | | ????????????????? #??????????????? | | ??############## ???????????????? | | ?## + ???????????????? | | ?# """ ! # #??????????????? | | ?## """ # #??????????????? | | ??# # #??????????????? | | ?## " # #??????????????? | | ?# # #??????????????? | | ## # +??????????????? | | # # #??????????????? | | ## # #??????????????? | | # # #??????????????? | | ## # #??????????????? | | # / ##########?????? | | ### ########+### # #?????? | | # % # ### # " #?????? | | # ==%## # """ #?????? | | # """""" + + G #?????? | | # """""" ## # """ #?????? | | # """""" ##g ### ## " #?????? | | # """ ""!## ### ## #?????? | | # =# g ## ## #?????? | | # """""" # ## ##= #?????? | | # """""" + g ##+############????? | | ? """""" #@ ## ] T #????? | | ??"""""" # ## #????? | | ?? ### #### """" """" #????? | | ??"""""" #?# #??# """" """" #???## | | ??"""""" #?# #??# """" """" #???# | | ???""""" #?# #??# """" """" =#???# | | ????"""" #?# #??# #???# | | ??????? #?# #??# """" """" #???# | | ??????? ??# ??+ """" """" !#???# | | ???????##??# #??# """" """" #???# | | ???????????# #??# """" """" #???# | | ???????????# #??# #???# | | ???????????# #??#######+########## | | ???????????# #??????# | | ???????????# #??????# ######### | | ???????????# #??????# #???????? | | ???????????# ######## #???????? | | ???????????# #???????? | | ???????????########## #???????? | | ??????????########### #???????? | | ??????????# # #???????? | | ??????????# ][[ # #???????? | | ??????????# ][[ # #???????? | | ??????????# ][[ + #???????? | | ??????????# # #???????? | +----------------------------------------------------+ Best States ------------- Heat Dissipation 48 Energy Generation 16 Energy Capacity 290 Matter Stores 330 Matter Capacity 450 Sight Range 18 Robot Scan Range 15 Terrain Scan Range 14 Terrain Scan Density 10 Armor Coverage 225 Evasion (%) 55 Target Analysis 5 Item Schematics ----------------- None Robot Schematics ------------------ None Fabricated ------------ Nothing Alien Tech Used ----------------- None Achievements -------------- None Challenges ------------ None Game ------ Seed AngularAlertPower Manual? 0 Play Time 00:32:50 Cumulative 6.7 hours Start 2025.01.07 @ 00:48:07 End 2025.01.11 @ 22:39:21 Sessions 2 Manual Loads 0 Difficulty Rogue Special Mode None Game No. 7 Rogue 7 Adventurer 0 Explorer 0 Win Type - Total 0 Types 0/0/0/0/0/0/0/0/0 Lore% 2 Gallery% 10 Achievement% 12 Wizard Run 0 Options --------- Layout 2 ASCII 0 Keyboard 1 Movement Vi Keybinds 0 Fullscreen 1 Font 24/Smallcaps Map View 50x44 Zoom Use 0% Tactical HUD 1 Map Filters NONE Filters NONE Steam 1 RUN: 83c56040-024a-46f2-af30-7638f6818703